fUSD/lending_fUSD_20251215
["ID","MTS","AMOUNT","RATE_DAILY","PERIOD"]
[398565367,1765834240028,-885.6033124,0.00016,4]
[398565368,1765834240039,-2615.98241607,0.00016,4]
[398565369,1765834240050,-999.0,0.00016,4]
[398565370,1765834240089,-508.87220089,0.00016,4]
[398565371,1765834240100,-600.719909,0.00016,4]
[398565372,1765834240111,-2093.22915044,0.00016,4]
[398565373,1765834240122,-1726.20261433,0.00016,4]
[398565374,1765834240261,-15899.76939404,0.00016,4]
[398565375,1765834240270,-196.88647676,0.00016012,2]
[398565376,1765834240279,-500.0,0.00016012,2]
[398565377,1765834240288,-306.77570671,0.00016012,2]
[398565378,1765834240297,-28037.2663,0.00016013,2]
[398565379,1765834240306,-151.0,0.00016013,2]
[398565380,1765834240315,-1000.0,0.00016016,2]
[398565381,1765834240325,-1029.7974,0.00016016,2]
[398565382,1765834240334,-199.0154,0.00016016,2]
[398565383,1765834240343,-1000.0,0.00016016,2]
[398565384,1765834240352,-641.53685889,0.00016016,2]
[398565386,1765834240361,-1236.61094073,0.00016016,2]
[398565387,1765834240371,-151.4369506,0.00016017,2]
[398565389,1765834240380,-300.0,0.00016089,2]
[398565390,1765834240389,-200.0,0.00016089,2]
[398565391,1765834240398,-207.4,0.00016089,2]
[398565392,1765834240408,-215.0738,0.00016089,2]
[398565393,1765834240416,-223.0315306,0.00016089,2]
[398565394,1765834240426,-231.28369723,0.00016089,2]
[398565395,1765834240435,-239.84119403,0.00016089,2]
[398565396,1765834240444,-9000.0,0.00016089,2]
[398565397,1765834240454,-248.71531821,0.00016089,2]
[398565398,1765834240466,-257.91778498,0.00016089,2]
[398565399,1765834240485,-267.46074303,0.00016089,2]
[398565401,1765834240498,-300.0,0.00016089,2]
[398565402,1765834240507,-719.04747942,0.00016089,2]
[398565403,1765834240517,-1748.0,0.00016089,2]
[398565404,1765834240529,-578.20924308,0.00016089,2]
[398565405,1765834240541,-1435.69602044,0.00016089,2]
[398565406,1765834240551,-151.80375574,0.00016106,2]
[398565407,1765834240561,-151.0,0.00016106,2]
[398565408,1765834240571,-151.0,0.00016106,2]
[398565409,1765834240581,-151.0,0.00016106,2]
[398565410,1765834240590,-151.0,0.00016106,2]
[398565411,1765834240600,-151.0,0.00016106,2]
[398565412,1765834240610,-151.0,0.00016106,2]
[398565413,1765834240619,-200.0,0.00016106,2]
[398565414,1765834240628,-200.0,0.00016106,2]
[398565415,1765834240638,-151.0,0.00016106,2]
[398565416,1765834240647,-151.0,0.00016106,2]
[398565417,1765834240657,-151.0,0.00016106,2]
[398565418,1765834240666,-200.0,0.00016106,2]
[398565419,1765834240676,-151.0,0.00016106,2]
[398565420,1765834240685,-151.0,0.00016106,2]
[398565421,1765834240695,-151.0,0.00016106,2]
[398565422,1765834240704,-352.61826565,0.00016106,2]
[398565423,1765834240714,-1000.0,0.00016106,2]
[398565424,1765834240723,-1000.0,0.00016106,2]
[398565425,1765834240732,-1000.0,0.00016106,2]
[398565426,1765834240741,-1000.0,0.00016106,2]
[398565427,1765834240750,-1000.0,0.00016106,2]
[398565428,1765834240761,-500.0,0.00016106,2]
[398565429,1765834240770,-1000.0,0.00016106,2]
[398565430,1765834240779,-500.0,0.00016106,2]
[398565431,1765834240788,-1000.0,0.00016106,2]
[398565432,1765834240798,-500.0,0.00016106,2]
[398565433,1765834240807,-553.64373807,0.00016106,2]
[398565434,1765834240817,-1000.0,0.00016106,2]
[398565435,1765834240826,-500.0,0.00016106,2]
[398565436,1765834240836,-1000.0,0.00016106,2]
[398565437,1765834240845,-620.0,0.00016106,2]
[398565438,1765834240855,-506.59873272,0.00016106,2]
[398565439,1765834240865,-1000.0,0.00016106,2]
[398565440,1765834240874,-1000.0,0.00016106,2]
[398565441,1765834240884,-1000.0,0.00016106,2]
[398565442,1765834240893,-1000.0,0.00016106,2]
[398565443,1765834240902,-1000.0,0.00016106,2]
[398565444,1765834240911,-1000.0,0.00016106,2]
[398565445,1765834240920,-1000.0,0.00016106,2]
[398565446,1765834240929,-500.0,0.00016106,2]
[398565447,1765834240938,-500.0,0.00016106,2]
[398565448,1765834240947,-151.0,0.00016106,2]
[398565449,1765834240956,-216.52973342,0.00016106,2]
[398565450,1765834240965,-151.0,0.00016106,2]
[398565451,1765834240974,-1159.13,0.00016113,2]
[398565452,1765834240983,-152.67,0.00016114,2]
[398565453,1765834240992,-211.47062833,0.00016115,2]
[398565454,1765834241001,-1549.24,0.00016115,2]
[398565455,1765834241010,-175.80093388,0.00016115,2]
[398565456,1765834241020,-1213.70128937,0.00016115,5]
[398565457,1765834241029,-500.0,0.00016115,2]
[398565458,1765834241038,-364.594378,0.00016116,2]
[398565459,1765834241047,-364.594378,0.00016116,2]
[398565460,1765834241057,-364.594378,0.00016116,2]
[398565461,1765834241066,-364.594378,0.00016116,2]
[398565462,1765834241075,-151.0,0.00016116,2]
[398565463,1765834241084,-151.0,0.00016116,2]
[398565464,1765834241093,-287.349578,0.00016116,2]
[398565465,1765834241102,-151.0,0.00016116,2]
[398565466,1765834241111,-166.66,0.00016117,2]
[398565467,1765834241120,-150.67,0.00016154,2]
[398565468,1765834241129,-150.0,0.00016164,2]
[398565469,1765834241138,-150.0,0.00016164,2]
[398565470,1765834241147,-150.0,0.00016164,2]
[398565471,1765834241157,-150.0,0.00016164,2]
[398565472,1765834241166,-500.0,0.00016164,2]
[398565473,1765834241175,-476.0,0.00016164,2]
[398565474,1765834241184,-500.0,0.00016164,2]
[398565475,1765834241193,-490.0,0.00016164,2]
[398565476,1765834241202,-500.0,0.00016164,2]
[398565477,1765834241211,-500.0,0.00016164,2]
[398565478,1765834241220,-150.0,0.00016164,2]
[398565479,1765834241229,-500.0,0.00016164,2]
[398565480,1765834241239,-150.0,0.00016164,2]
[398565481,1765834241247,-500.0,0.00016164,2]
[398565482,1765834241256,-429.0,0.00016164,2]
[398565483,1765834241265,-150.0,0.00016164,2]
[398565484,1765834241275,-500.0,0.00016164,2]
[398565485,1765834241284,-500.0,0.00016164,2]
[398565486,1765834241293,-500.0,0.00016164,2]
[398565487,1765834241302,-152.38694355,0.00016164,2]
[398565488,1765834241312,-150.0,0.00016164,2]
[398565489,1765834241321,-500.0,0.00016164,2]
[398565490,1765834241331,-501.32368526,0.00016173,2]
[398565491,1765834241340,-500.0,0.00016173,2]
[398565492,1765834241349,-500.0,0.00016173,2]
[398565493,1765834241359,-556.87569377,0.00016173,2]
[398565494,1765834241368,-500.0,0.00016173,2]
[398565495,1765834241378,-502.09208963,0.00016173,2]
[398565496,1765834241387,-500.0,0.00016173,2]
[398565497,1765834241397,-500.0,0.00016173,2]
[398565498,1765834241407,-1236.61094072,0.00016177,2]
[398565499,1765834241417,-1067.0,0.000162,2]
[398565500,1765834241426,-5000.00869352,0.000162,5]
[398565501,1765834241436,-1106.56,0.000162,2]
[398565502,1765834241446,-639.0,0.00016233,2]
[398565503,1765834241454,-10045.98354155,0.00016246,2]
[398565504,1765834241464,-164.03,0.00016281,2]
[398565505,1765834241477,-1021.0,0.0001629,2]
[398565506,1765834241486,-178.26,0.000163,2]
[398565507,1765834241496,-170.46,0.000163,2]
[398565508,1765834241507,-1431.22,0.000163,2]
[398565509,1765834241516,-178.26,0.000163,2]
[398565510,1765834241526,-1236.93,0.000163,2]
[398565511,1765834241535,-150.0,0.00016301,2]
[398565512,1765834241546,-150.0,0.00016301,2]
[398565513,1765834241555,-151.73216425,0.00016301,2]
[398565514,1765834241565,-150.0,0.00016301,2]
[398565515,1765834241574,-500.0,0.00016301,2]
[398565516,1765834241584,-476.0,0.00016301,2]
[398565517,1765834241593,-500.0,0.00016301,2]
[398565518,1765834241602,-490.0,0.00016301,2]
[398565519,1765834241612,-500.0,0.00016301,2]
[398565520,1765834241621,-500.0,0.00016301,2]
[398565521,1765834241630,-150.0,0.00016301,2]
[398565522,1765834241640,-500.0,0.00016301,2]
[398565523,1765834241650,-500.0,0.00016301,2]
[398565524,1765834241660,-429.0,0.00016301,2]
[398565525,1765834241669,-203.47899802,0.00016301,2]
[398565526,1765834241679,-500.0,0.00016301,2]
[398565527,1765834241688,-500.0,0.00016301,2]
[398565528,1765834241698,-500.0,0.00016301,2]
[398565529,1765834241707,-266.35980985,0.00016301,2]
[398565530,1765834241716,-500.0,0.00016301,2]
[398565531,1765834241725,-500.0,0.00016301,2]
[398565532,1765834241734,-200.0,0.00016307,2]
[398565533,1765834241743,-1236.61094072,0.00016338,2]
[398565534,1765834241752,-1159.13,0.00016387,2]
[398565535,1765834241761,-500.0,0.00016389,2]
[398565536,1765834241770,-94725.08897958,0.00016424,2]
[398565537,1765834241783,-2455.0940306,0.00016424,2]
[398565551,1765834243026,-485.74255521,0.00016424,2]
[398565552,1765834243250,-7950.65881695,0.00016424,2]
[398565553,1765834243264,-316.16713008,0.00016424,2]
[398565554,1765834243276,-1343.6405701,0.00016424,2]
[398565563,1765834245994,-56326.02730938,0.00016424,2]
[398565564,1765834246003,-7408.2167542,0.00016424,2]
[398565565,1765834246013,-151.0,0.00016424,2]
[398565566,1765834246022,-364.594378,0.00016424,2]
[398565567,1765834246032,-364.594378,0.00016424,2]
[398565568,1765834246041,-364.594378,0.00016424,2]
[398565569,1765834246051,-364.594378,0.00016424,2]
[398565570,1765834246060,-151.0,0.00016424,2]
[398565571,1765834246070,-151.0,0.00016424,2]
[398565572,1765834246079,-297.545913,0.00016424,2]
[398565573,1765834246089,-641.53685889,0.00016428,2]
[398565574,1765834246098,-200.0,0.00016438,2]
[398565575,1765834246109,-150.0,0.00016438,2]
[398565576,1765834246118,-150.0,0.00016438,2]
[398565577,1765834246127,-500.0,0.00016438,2]
[398565578,1765834246136,-476.0,0.00016438,2]
[398565579,1765834246146,-500.0,0.00016438,2]
[398565580,1765834246155,-490.0,0.00016438,2]
[398565581,1765834246164,-500.0,0.00016438,2]
[398565582,1765834246173,-500.0,0.00016438,2]
[398565583,1765834246182,-150.0,0.00016438,2]
[398565584,1765834246191,-500.0,0.00016438,2]
[398565585,1765834246200,-500.0,0.00016438,2]
[398565586,1765834246210,-429.0,0.00016438,2]
[398565587,1765834246219,-500.0,0.00016438,2]
[398565588,1765834246228,-577.63560469,0.00016438,2]
[398565589,1765834246238,-269.09837216,0.00016438,2]
[398565590,1765834246251,-230.90162784,0.00016438,2]
[398565591,1765834246261,-245.45061625,0.00016438,2]
[398565592,1765834246273,-254.54938375,0.00016438,2]
[398565593,1765834246283,-151.0,0.00016438,2]
[398565594,1765834246292,-738.40049625,0.00016438,2]
[398565595,1765834246303,-311.95472696,0.00016438,2]
[398565596,1765834246318,-59004.71511589,0.00016438,2]
[398565597,1765834246329,-547.86314549,0.00016438,2]
[398565598,1765834246342,-8507.24236572,0.00016438,2]
[398565599,1765834246354,-621.06999944,0.00016438,2]
[398565600,1765834315123,-174.64841457,0.0001575,2]
[398565606,1765834451522,-75.35158543,0.0001575,2]
[398565607,1765834525787,1000.0,0.00015356,2]
[398565608,1765834612469,129.64841457,0.0001589,2]
[398565609,1765834715736,384.28,0.00015299,2]
[398565612,1765834941774,999.0,0.00015309,3]
[398565614,1765835096371,250.0,0.0001525,2]
[398565634,1765835322909,1214.2,0.0001532,2]
[398565677,1765835435336,-300.0,0.00015807,2]
[398565678,1765835435346,-49.93724835,0.00015807,2]
[398565679,1765835435359,-250.06275165,0.00015807,2]
[398565680,1765835435368,-380.24724835,0.00015807,2]
[398565681,1765835435390,-819.75275165,0.00015807,2]
[398565682,1765835435400,-5062.21580171,0.00015808,2]
[398565683,1765835435428,-47766.55149829,0.00015808,2]
[398565684,1765835435439,-1000.0,0.00015813,2]
[398565685,1765835435451,-250.0,0.00015814,2]
[398565686,1765835435460,-511.8570182,0.00015815,2]
[398565687,1765835435470,-7872.17617235,0.00015815,2]
[398565688,1765835435480,-502.03126221,0.0001589,2]
[398565689,1765835435490,-439.51155306,0.000159,2]
[398565690,1765835435499,-300.0,0.00015902,2]
[398565691,1765835435508,-500.0,0.00015903,2]
[398565692,1765835435518,-207.4,0.00015903,2]
[398565693,1765835435529,-200.0,0.00015903,2]
[398565694,1765835435538,-300.0,0.00015903,2]
[398565695,1765835435547,-200.0,0.00015903,2]
[398565696,1765835435556,-1000.0,0.00015903,2]
[398565697,1765835435565,-1000.0,0.00015903,2]
[398565698,1765835435574,-1000.0,0.00015903,2]
[398565699,1765835435588,-1000.0,0.00015903,2]
[398565700,1765835435598,-1748.0,0.00015903,2]
[398565701,1765835435608,-1000.0,0.00015903,2]
[398565702,1765835435618,-1000.0,0.00015903,2]
[398565703,1765835435628,-1000.0,0.00015903,2]
[398565704,1765835435638,-1000.0,0.00015903,2]
[398565705,1765835435648,-1000.0,0.00015903,2]
[398565706,1765835435657,-151.0,0.00015903,2]
[398565707,1765835435668,-553.64373807,0.00015903,2]
[398565708,1765835435678,-500.0,0.00015905,2]
[398565709,1765835435688,-500.0,0.00015905,2]
[398565710,1765835435697,-500.0,0.00015905,2]
[398565711,1765835435707,-500.0,0.00015905,2]
[398565712,1765835435716,-500.0,0.00015905,2]
[398565713,1765835435726,-500.0,0.00015905,2]
[398565714,1765835435735,-500.0,0.00015905,2]
[398565715,1765835435745,-500.0,0.00015905,2]
[398565716,1765835435755,-500.0,0.00015905,2]
[398565717,1765835435765,-516.18010921,0.00015905,2]
[398565718,1765835435775,-690.13572421,0.00015905,2]
[398565719,1765835435785,-690.13572421,0.00015905,2]
[398565720,1765835435794,-690.13572421,0.00015905,2]
[398565721,1765835435804,-690.13572421,0.00015905,2]
[398565722,1765835435813,-690.13572421,0.00015905,2]
[398565723,1765835435827,-690.13572421,0.00015905,2]
[398565724,1765835435837,-690.13572421,0.00015905,2]
[398565725,1765835435847,-690.13572421,0.00015905,2]
[398565726,1765835435856,-690.13572421,0.00015905,2]
[398565727,1765835435867,-690.13572421,0.00015905,2]
[398565728,1765835435877,-690.13572421,0.00015905,2]
[398565729,1765835435886,-690.13572421,0.00015905,2]
[398565730,1765835435895,-690.13572421,0.00015905,2]
[398565731,1765835435905,-194.39283187,0.00015905,2]
[398565732,1765835435922,-495.74289234,0.00015905,2]
[398565733,1765835435932,-690.13572421,0.00015905,2]
[398565734,1765835435941,-690.13572421,0.00015905,2]
[398565735,1765835435951,-690.13572421,0.00015905,2]
[398565736,1765835435961,-690.13572421,0.00015905,2]
[398565737,1765835435970,-690.13572421,0.00015905,2]
[398565738,1765835435979,-690.13572421,0.00015905,2]
[398565739,1765835435989,-690.13572421,0.00015905,2]
[398565740,1765835435998,-690.13572421,0.00015905,2]
[398565741,1765835436007,-690.13572421,0.00015905,2]
[398565742,1765835436017,-690.13572421,0.00015905,2]
[398565743,1765835436026,-690.13572421,0.00015905,2]
[398565744,1765835436036,-690.13572421,0.00015905,2]
[398565745,1765835436045,-461.31081577,0.00015905,2]
[398565746,1765835438203,-228.82490844,0.00015905,2]
[398565747,1765835438212,-668.11509156,0.00015905,2]
[398565748,1765835438261,-22.02063265,0.00015905,2]
[398565750,1765835438271,-690.13572421,0.00015905,2]
[398565751,1765835438280,-690.13572421,0.00015905,2]
[398565752,1765835438290,-690.13572421,0.00015905,2]
[398565753,1765835438299,-690.13572421,0.00015905,2]
[398565754,1765835438309,-690.13572421,0.00015905,2]
[398565755,1765835438318,-690.13572421,0.00015905,2]
[398565757,1765835438327,-690.13572421,0.00015905,2]
[398565759,1765835438336,-690.13572421,0.00015905,2]
[398565760,1765835438346,-690.13572421,0.00015905,2]
[398565761,1765835438355,-690.13572421,0.00015905,2]
[398565762,1765835438365,-690.13572421,0.00015905,2]
[398565763,1765835438374,-690.13572421,0.00015905,2]
[398565764,1765835438384,-322.13304299,0.00015905,2]
[398565769,1765835440141,-368.00268122,0.00015905,2]
[398565770,1765835440154,-54.88955122,0.00015905,2]
[398565771,1765835440204,-635.24617299,0.00015905,2]
[398565772,1765835440213,-690.13572421,0.00015905,2]
[398565773,1765835440223,-675.03900525,0.00015905,2]
[398565774,1765835440233,-675.03900525,0.00015905,2]
[398565775,1765835440242,-675.03900525,0.00015905,2]
[398565776,1765835440252,-675.03900525,0.00015905,2]
[398565777,1765835440262,-675.03900525,0.00015905,2]
[398565778,1765835440271,-675.03900525,0.00015905,2]
[398565779,1765835440280,-675.03900525,0.00015905,2]
[398565781,1765835440812,-675.03900525,0.00015905,2]
[398565782,1765835440834,-675.03900525,0.00015905,2]
[398565783,1765835440846,-675.03900525,0.00015905,2]
[398565784,1765835440856,-675.03900525,0.00015905,2]
[398565785,1765835440867,-675.03900525,0.00015905,2]
[398565786,1765835440876,-675.03900525,0.00015905,2]
[398565787,1765835440885,-675.03900525,0.00015905,2]
[398565788,1765835440895,-675.03900525,0.00015905,2]
[398565789,1765835440906,-675.03900525,0.00015905,2]
[398565790,1765835440915,-675.03900525,0.00015905,2]
[398565791,1765835440925,-433.21369271,0.00015905,2]
[398565792,1765835440965,-241.82531254,0.00015905,2]
[398565793,1765835440974,-675.03900525,0.00015905,2]
[398565794,1765835440983,-675.03900525,0.00015905,2]
[398565795,1765835440993,-675.03900525,0.00015905,2]
[398565796,1765835441002,-446.97937212,0.00015905,2]
[398565797,1765835441023,-228.05963313,0.00015905,2]
[398565798,1765835441033,-675.03900525,0.00015905,2]
[398565799,1765835441042,-45.27016149,0.00015905,2]
[398565800,1765835443303,-95.40408802,0.00015905,2]
[398565801,1765835443333,-534.36475574,0.00015905,2]
[398565802,1765835443342,-176.87776754,0.00015905,2]
[398565808,1765835447193,-498.16123771,0.00015905,2]
[398565809,1765835447203,-675.03900525,0.00015905,2]
[398565810,1765835447212,-699.58587818,0.00015905,2]
[398565811,1765835447221,-699.58587818,0.00015905,2]
[398565812,1765835447231,-137.86112068,0.00015905,2]
[398565813,1765835447242,-561.7247575,0.00015905,2]
[398565814,1765835447252,-699.58587818,0.00015905,2]
[398565815,1765835447261,-441.56571874,0.00015905,2]
[398565816,1765835460684,200.0,0.00015389,2]
[398565818,1765835528775,259.629,0.00015713,2]
[398565820,1765835641266,784.61,0.00013699,2]
[398565821,1765835757158,1600.0,0.00015323,2]
[398565822,1765835796594,1000.0,0.00015713,2]
[398565823,1765835861146,163.27,0.00015244,2]
[398565824,1765835947483,1000.0,0.00015713,2]
[398565825,1765835991915,444.0,0.0001519,2]
[398565826,1765836093993,1563.627,0.00015497,2]
[398565827,1765836094075,179.386,0.00015497,2]
[398565828,1765836128888,-593.04440699,0.00015716,2]
[398565829,1765836141604,-300.0,0.00015716,2]
[398565830,1765836144766,-215.98353726,0.00015716,2]
[398565831,1765836148918,-252.87512502,0.00015716,2]
[398565832,1765836153803,-376.61795074,0.00015716,2]
[398565833,1765836157034,212.6649,0.00015713,2]
[398565834,1765836157149,-219.0159112,0.00015716,2]
[398565835,1765836159415,-233.05064367,0.00015716,2]
[398565836,1765836160997,-368.31452071,0.00015716,2]
[398565837,1765836166481,-248.07545574,0.00015716,2]
[398565838,1765836168837,-194.47341955,0.00015716,2]
[398565839,1765836171891,-252.76918837,0.00015716,2]
[398565840,1765836174500,-383.36732625,0.00015716,2]
[398565841,1765836180158,-223.73662508,0.00015716,2]
[398565842,1765836183548,-250.0,0.00015716,2]
[398565843,1765836189434,-264.57637586,0.00015716,2]
[398565844,1765836195424,-322.84429837,0.00015716,2]
[398565845,1765836198389,-171.9491819,0.00015716,2]
[398565846,1765836199938,-205.43089981,0.00015716,2]
[398565847,1765836204963,-154.77529103,0.00015716,2]
[398565848,1765836208010,-310.88496219,0.00015716,2]
[398565849,1765836212961,-182.24714427,0.00015716,2]
[398565850,1765836216720,-302.3988514,0.00015716,2]
[398565851,1765836221555,-270.66261022,0.00015716,2]
[398565852,1765836224730,-176.02356388,0.00015716,2]
[398565853,1765836229496,-192.72675548,0.00015716,2]
[398565854,1765836234908,-162.9775647,0.00015716,2]
[398565855,1765836236596,-170.58616784,0.00015716,2]
[398565856,1765836239970,-380.04752929,0.00015716,2]
[398565857,1765836244211,-94.35470798,0.00015716,2]
[398565858,1765836244233,-99.39772765,0.00015716,2]
[398565859,1765836248365,-207.01488234,0.00015716,2]
[398565860,1765836269445,-161.61202635,0.00015716,2]
[398565861,1765836269467,-147.30530284,0.00015748,2]
[398565862,1765836270194,250.0,0.00015551,2]
[398565863,1765836274752,-152.69469716,0.00015748,2]
[398565864,1765836274773,-6.35032775,0.00015748,2]
[398565865,1765836277041,-224.90101894,0.00015748,2]
[398565867,1765836279827,-210.0,0.00015748,2]
[398565868,1765836281018,10385.45600643,0.000157,2]
[398565869,1765836288076,-256.99360434,0.00015748,2]
[398565870,1765836292239,-151.67773019,0.00015748,2]
[398565871,1765836294398,-300.0,0.00015748,2]
[398565872,1765836295985,-50.07731878,0.00015748,2]
[398565873,1765836296008,-100.92268139,0.00015748,2]
[398565875,1765836301466,-286.7759658,0.00015748,2]
[398565876,1765836304049,-184.55686546,0.00015747,2]
[398565877,1765836305623,-115.44313454,0.00015747,2]
[398565878,1765836305647,-150.61781963,0.00015747,2]
[398565879,1765836310234,-195.0,0.00015747,2]
[398565880,1765836315193,-247.65890391,0.00015747,2]
[398565881,1765836318925,-201.65706812,0.00015747,2]
[398565884,1765836362518,166.68,0.00015621,2]
[398565885,1765836390038,233.05,0.0001515,2]
[398565898,1765836452472,500.0,0.00015616,2]
[398565902,1765836539404,500.0,0.0001514,2]
[398565913,1765836634515,-300.0,0.00015745,2]
[398565914,1765836634527,-274.9815518,0.00015745,2]
[398565915,1765836634552,-25.0184482,0.00015745,2]
[398565916,1765836634561,-300.0,0.00015745,2]
[398565917,1765836634570,-1200.0,0.00015745,2]
[398565918,1765836634579,-151.0,0.00015747,2]
[398565919,1765836634588,-1166.95,0.00015748,2]
[398565920,1765836634597,-279.84658052,0.00015749,2]
[398565921,1765836634607,-500.0,0.00015749,2]
[398565922,1765836634617,-337.77663293,0.00015749,2]
[398565923,1765836634627,-252.47270059,0.00015749,2]
[398565924,1765836634637,-500.0,0.00015749,2]
[398565925,1765836634647,-500.0,0.00015749,2]
[398565926,1765836634656,-500.0,0.00015749,2]
[398565927,1765836634665,-30187.83097224,0.0001575,2]
[398565928,1765836634678,-515.93125002,0.0001575,2]
[398565929,1765836634696,-46764.5876804,0.0001575,2]
[398565930,1765836634708,-12368.00747316,0.0001575,2]
[398565931,1765836634720,-22066.54452623,0.0001575,2]
[398565932,1765836635216,172.9899,0.00015647,2]
[398565939,1765836638328,-11796.80926432,0.0001575,2]
[398565940,1765836638340,-1168.48267549,0.0001575,2]
[398565941,1765836638349,-409.52155678,0.00015795,2]
[398565942,1765836638358,-6731.19490372,0.00015795,2]
[398565943,1765836638366,-500.0,0.00015812,2]
[398565944,1765836638374,-14098.33236401,0.00015813,2]
[398565945,1765836638440,-1193.8,0.00015813,2]
[398565946,1765836638451,-1295.24488642,0.00015813,2]
[398565947,1765836638463,-1064.40417485,0.00015813,2]
[398565948,1765836638499,-398.96585399,0.00015813,2]
[398565949,1765836638510,-12009.34908051,0.00015813,2]
[398565950,1765836638521,-10169.3334292,0.00015813,2]
[398565951,1765836638558,-3987.72694341,0.00015813,2]
[398565978,1765836640355,-518.41009963,0.00015803,2]
[398565982,1765836640875,-1.7e-07,0.00015803,2]
[398565983,1765836640886,-3815.8299002,0.00015803,2]
[398565984,1765836640896,-411.36500123,0.00015803,2]
[398565985,1765836640907,-418.54789703,0.00015803,2]
[398565987,1765836640918,-3504.32710174,0.00015803,2]
[398565989,1765836640927,-16806.39717738,0.00015813,2]
[398565990,1765836640938,-13473.14504517,0.00015813,2]
[398565991,1765836640949,-7938.34899041,0.00015813,2]
[398565992,1765836640961,-1232.66097081,0.00015813,2]
[398565993,1765836640978,-1711.20790717,0.00015813,2]
[398565994,1765836641006,-3864.10583401,0.00015813,2]
[398565995,1765836641017,-601.50114901,0.00015813,2]
[398565997,1765836641028,-3730.46264169,0.00015813,2]
[398565998,1765836641039,-3024.99605513,0.00015813,2]
[398565999,1765836641050,-11038.00624642,0.00015813,2]
[398566000,1765836641061,-33514.33954633,0.00015813,2]
[398566001,1765836641072,-617.05038178,0.00015813,2]
[398566002,1765836641088,-270.00005,0.00015813,2]
[398566003,1765836641099,-336.3733244,0.00015813,2]
[398566004,1765836641110,-265.713797,0.00015813,2]
[398566010,1765836645932,-446.32934225,0.00015745,2]
[398566011,1765836645941,-500.0,0.00015745,2]
[398566012,1765836645951,-348.60560838,0.00015745,2]
[398566013,1765836646422,-151.39439162,0.00015745,2]
[398566014,1765836646432,-500.0,0.00015745,2]
[398566015,1765836646443,-201.63707885,0.00015745,2]
[398566016,1765836646454,-265.22315895,0.00015745,2]
[398566017,1765836646466,-769.20706615,0.00015745,2]
[398566018,1765836646476,-769.20706615,0.00015745,2]
[398566019,1765836646487,-769.20706615,0.00015745,2]
[398566020,1765836646496,-510.96827611,0.00015745,2]
[398566021,1765836646507,-258.23879004,0.00015745,2]
[398566022,1765836646518,-173.19220996,0.00015745,2]
[398566023,1765836646646,-596.01485619,0.00015745,2]
[398566024,1765836646658,-769.20706615,0.00015745,2]
[398566025,1765836646668,-769.20706615,0.00015745,2]
[398566026,1765836646679,-769.20706615,0.00015745,2]
[398566027,1765836646690,-769.20706615,0.00015745,2]
[398566028,1765836646699,-769.20706615,0.00015745,2]
[398566029,1765836646710,-769.20706615,0.00015745,2]
[398566030,1765836646720,-769.20706615,0.00015745,2]
[398566031,1765836646730,-769.20706615,0.00015745,2]
[398566032,1765836646739,-769.20706615,0.00015745,2]
[398566033,1765836646749,-769.20706615,0.00015745,2]
[398566034,1765836646759,-347.11448231,0.00015745,2]
[398566045,1765836666350,209.741393,0.00015666,2]
[398566046,1765836666950,323.0,0.00015666,2]
[398566047,1765836667270,7989.8365,0.00015648,2]
[398566048,1765836750635,166.66,0.0001449,2]
[398566049,1765836750673,166.66,0.00014795,2]
[398566050,1765836750713,166.66,0.000151,2]
[398566051,1765836750756,166.66,0.00015405,2]
[398566052,1765836750792,166.66,0.0001571,2]
[398566053,1765836765266,208.12,0.00015251,2]
[398566054,1765836835886,46693.88306279,0.00015646,2]
[398566055,1765836835922,570664.65113721,0.00015646,2]
[398566058,1765836942886,6682.1636,0.0001565,2]